fUSD/lending_fUSD_20260217
["ID","MTS","AMOUNT","RATE_DAILY","PERIOD"]
[405811746,1771332361191,-646.75539689,6.717e-05,2]
[405811747,1771332361219,-646.75539689,6.717e-05,2]
[405811748,1771332361252,-646.75539689,6.717e-05,2]
[405811749,1771332361280,-646.75539689,6.717e-05,2]
[405811750,1771332361309,-646.75539689,6.717e-05,2]
[405811751,1771332361337,-646.75539689,6.717e-05,2]
[405811752,1771332361365,-646.75539689,6.717e-05,2]
[405811753,1771332361392,-646.75539689,6.717e-05,2]
[405811754,1771332361420,-646.75539689,6.717e-05,2]
[405811755,1771332361465,-646.75539689,6.717e-05,2]
[405811756,1771332361507,-646.75539689,6.717e-05,2]
[405811757,1771332361552,-646.75539689,6.717e-05,2]
[405811758,1771332361590,-646.75539689,6.717e-05,2]
[405811759,1771332361633,-646.75539689,6.717e-05,2]
[405811760,1771332361676,-646.75539689,6.717e-05,2]
[405811761,1771332361718,-646.75539689,6.717e-05,2]
[405811762,1771332361760,-646.75539689,6.717e-05,2]
[405811763,1771332361806,-646.75539689,6.717e-05,2]
[405811764,1771332361851,-646.75539689,6.717e-05,2]
[405811765,1771332361885,-646.75539689,6.717e-05,2]
[405811766,1771332361925,-646.75539689,6.717e-05,2]
[405811767,1771332361962,-646.75539689,6.717e-05,2]
[405811768,1771332361998,-646.75539689,6.717e-05,2]
[405811769,1771332362045,-646.75539689,6.717e-05,2]
[405811770,1771332362084,-646.75539689,6.717e-05,2]
[405811771,1771332362124,-646.75539689,6.717e-05,2]
[405811772,1771332362161,-646.75539689,6.717e-05,2]
[405811773,1771332362197,-646.75539689,6.717e-05,2]
[405811774,1771332362236,-646.75539689,6.717e-05,2]
[405811775,1771332362274,-646.75539689,6.717e-05,2]
[405811776,1771332362311,-634.99620785,6.717e-05,2]
[405811777,1771332362349,-311.79527682,6.717e-05,2]
[405811778,1771332362567,-323.20093103,6.717e-05,2]
[405811779,1771332362606,-634.99620785,6.717e-05,2]
[405811780,1771332362642,-634.99620785,6.717e-05,2]
[405811781,1771332362681,-634.99620785,6.717e-05,2]
[405811782,1771332362719,-634.99620785,6.717e-05,2]
[405811783,1771332362758,-634.99620785,6.717e-05,2]
[405811784,1771332362794,-634.99620785,6.717e-05,2]
[405811785,1771332362832,-634.99620785,6.717e-05,2]
[405811786,1771332362869,-634.99620785,6.717e-05,2]
[405811787,1771332362905,-634.99620785,6.717e-05,2]
[405811788,1771332362940,-634.99620785,6.717e-05,2]
[405811789,1771332362978,-634.99620785,6.717e-05,2]
[405811790,1771332363016,-634.99620785,6.717e-05,2]
[405811791,1771332363053,-634.99620785,6.717e-05,2]
[405811792,1771332363090,-634.99620785,6.717e-05,2]
[405811793,1771332363128,-634.99620785,6.717e-05,2]
[405811794,1771332363165,-634.99620785,6.717e-05,2]
[405811795,1771332363205,-634.99620785,6.717e-05,2]
[405811796,1771332363242,-634.99620785,6.717e-05,2]
[405811797,1771332363277,-634.99620785,6.717e-05,2]
[405811798,1771332363312,-634.99620785,6.717e-05,2]
[405811799,1771332363348,-634.99620785,6.717e-05,2]
[405811800,1771332363386,-634.99620785,6.717e-05,2]
[405811801,1771332363422,-634.99620785,6.717e-05,2]
[405811802,1771332363459,-634.99620785,6.717e-05,2]
[405811803,1771332363496,-634.99620785,6.717e-05,2]
[405811804,1771332363533,-634.99620785,6.717e-05,2]
[405811805,1771332363571,-634.99620785,6.717e-05,2]
[405811806,1771332363612,-634.99620785,6.717e-05,2]
[405811807,1771332363649,-634.99620785,6.717e-05,2]
[405811808,1771332363687,-634.99620785,6.717e-05,2]
[405811809,1771332363721,-155.58451653,6.717e-05,2]
[405811810,1771332363759,-634.99620774,6.717e-05,2]
[405811811,1771332363792,-250.84676906,6.717e-05,2]
[405811812,1771332363828,-4585.48534014,6.718e-05,2]
[405811813,1771332365132,-25000.0,6.718e-05,2]
[405811814,1771332365251,-25000.0,6.718e-05,2]
[405811815,1771332365395,-25000.0,6.718e-05,2]
[405811816,1771332365662,-25000.0,6.718e-05,2]
[405811817,1771332366799,-25000.0,6.718e-05,2]
[405811818,1771332367956,-25000.0,6.718e-05,2]
[405811819,1771332428008,152.0,6.718e-05,3]
[405811820,1771332491029,152.0,6.718e-05,3]
[405811821,1771332495861,8567.65199266,6.6e-05,3]
[405811822,1771332495905,10672.06499083,6.6e-05,3]
[405811823,1771332495959,9702.84470735,6.6e-05,3]
[405811824,1771332495987,3073.63328165,6.6e-05,3]
[405811825,1771332496031,14880.89098716,6.6e-05,3]
[405811826,1771332496071,14880.89098716,6.6e-05,3]
[405811827,1771332502548,151.0,8.99e-05,3]
[405811828,1771332503877,178.15,6.718e-05,3]
[405811829,1771332535514,912.68,0.00018,30]
[405811830,1771332555455,165.41,0.00018,30]
[405811831,1771332571911,800.0,6.593e-05,2]
[405811832,1771332571937,660.46954007,6.593e-05,2]
[405811833,1771332608310,152.0,6.593e-05,3]
[405811835,1771332626384,333.0,0.00019,120]
[405811838,1771332631780,-2601.0,6.603e-05,2]
[405811839,1771332631789,-207.0,6.603e-05,2]
[405811840,1771332631799,-1200.0,6.617e-05,2]
[405811841,1771332631809,-10187.18713073,6.618e-05,2]
[405811842,1771332631840,-4434.76220405,6.618e-05,2]
[405811843,1771332631851,-1000.0,6.618e-05,2]
[405811844,1771332631864,-394.89058537,6.618e-05,2]
[405811845,1771332631904,-3896.75834036,6.618e-05,2]
[405811846,1771332631915,-2701.61761818,6.618e-05,2]
[405811847,1771332631927,-510.78051524,6.618e-05,2]
[405811848,1771332631938,-926.05527075,6.618e-05,2]
[405811849,1771332631962,-3197.1583477,6.618e-05,2]
[405811850,1771332631973,-474.12914604,6.618e-05,2]
[405811851,1771332631985,-1952.66125016,6.618e-05,2]
[405811852,1771332631996,-2222.13091084,6.618e-05,2]
[405811853,1771332632027,-439.71812022,6.618e-05,2]
[405811854,1771332632038,-296.805,6.618e-05,2]
[405811855,1771332632050,-413.403511,6.618e-05,2]
[405811856,1771332632061,-71267.12529983,6.618e-05,2]
[405811865,1771332637960,-3395684.81674953,6.618e-05,2]
[405811866,1771332637970,-150.0,6.717e-05,2]
[405811867,1771332637979,-266.0,6.717e-05,2]
[405811868,1771332637989,-6693.62423238,6.717e-05,2]
[405811869,1771332637998,-500.0,6.717e-05,2]
[405811870,1771332638008,-500.0,6.717e-05,2]
[405811871,1771332638018,-500.0,6.717e-05,2]
[405811872,1771332638028,-500.0,6.717e-05,2]
[405811873,1771332638037,-500.0,6.717e-05,2]
[405811874,1771332638047,-500.0,6.717e-05,2]
[405811875,1771332638056,-252.12634351,6.717e-05,2]
[405811876,1771332638066,-500.0,6.717e-05,2]
[405811877,1771332638075,-500.0,6.717e-05,2]
[405811878,1771332638084,-500.0,6.717e-05,2]
[405811879,1771332638093,-500.0,6.717e-05,2]
[405811880,1771332638103,-500.0,6.717e-05,2]
[405811881,1771332638111,-500.0,6.717e-05,2]
[405811882,1771332638121,-500.0,6.717e-05,2]
[405811883,1771332638131,-234.31149524,6.717e-05,2]
[405811884,1771332638141,-250.0,6.718e-05,2]
[405811885,1771332638151,-51435.5335521,6.718e-05,2]
[405811886,1771332638160,-4306.488,6.78e-05,2]
[405811887,1771332638170,-389.273,6.78e-05,2]
[405811889,1771332638179,-250.0,6.796e-05,2]
[405811891,1771332638188,-500.0,6.918e-05,2]
[405811893,1771332638197,-1680.0,7.279e-05,2]
[405811895,1771332638207,-250.0,7.389e-05,2]
[405811897,1771332638216,-51435.5335521,7.433e-05,2]
[405811899,1771332638225,-150.99,7.499e-05,2]
[405811901,1771332638234,-499.99,7.499e-05,2]
[405811903,1771332638244,-9999.99,7.499e-05,2]
[405811905,1771332638253,-485.0,7.701e-05,2]
[405811907,1771332638262,-327.0,7.717e-05,2]
[405811909,1771332638272,-210.0,7.732e-05,2]
[405811911,1771332638282,-181.0,7.747e-05,2]
[405811913,1771332638292,-1270.0,7.942e-05,2]
[405811915,1771332638301,-96057.45,7.942e-05,2]
[405811917,1771332638310,-150.99,7.942e-05,2]
[405811919,1771332638318,-5914.98,7.942e-05,2]
[405811921,1771332638328,-9999.99,7.942e-05,2]
[405811923,1771332638337,-299.99,7.942e-05,2]
[405811925,1771332638346,-349.65,7.942e-05,2]
[405811927,1771332638354,-999.99,7.942e-05,2]
[405811929,1771332638364,-311.5,7.942e-05,2]
[405811931,1771332638373,-9999.99,7.942e-05,2]
[405811933,1771332638382,-1184.93,7.942e-05,2]
[405811935,1771332638391,-9999.99,7.942e-05,2]
[405811937,1771332638399,-3358.663823,7.945e-05,2]
[405811939,1771332638408,-2351.0,8.007e-05,2]
[405811941,1771332638418,-51435.5335521,8.148e-05,2]
[405811943,1771332638427,-912.16073,8.178e-05,2]
[405811945,1771332638436,-500.0,8.219e-05,2]
[405811947,1771332638445,-500.0,8.219e-05,2]
[405811949,1771332638455,-481.42021043,8.219e-05,2]
[405811951,1771332638463,-500.0,8.219e-05,2]
[405811953,1771332638474,-500.0,8.493e-05,2]
[405811956,1771332638483,-632.4,8.5e-05,2]
[405811958,1771332638493,-476.0,8.531e-05,2]
[405811960,1771332638502,-1854.0,8.562e-05,2]
[405811962,1771332638512,-1090.0,8.579e-05,2]
[405811964,1771332638521,-656.0,8.596e-05,2]
[405811966,1771332638531,-250.0,8.724e-05,2]
[405811968,1771332638540,-3292.0,8.807e-05,2]
[405811970,1771332638549,-51435.5335521,8.863e-05,2]
[405811972,1771332638559,-4826.22,8.9e-05,2]
[405811974,1771332638568,-2374.6,8.978e-05,2]
[405811976,1771332638579,-4194.14,9.081e-05,2]
[405811978,1771332638587,-1230.0,9.564e-05,2]
[405811980,1771332638596,-1688.0,9.583e-05,2]
[405811982,1771332638605,-4609.0,9.688e-05,2]
[405811984,1771332638614,-1600.0,9.715e-05,2]
[405811986,1771332638623,-20780.3,9.751e-05,2]
[405811988,1771332638632,-525.33,9.869e-05,2]
[405811990,1771332638642,-322.34040118,9.873e-05,2]
[405811992,1771332638651,-234.9,9.981e-05,2]
[405811994,1771332638661,-151.0,0.0001,2]
[405811996,1771332638670,-151.0,0.0001,2]
[405811998,1771332638680,-151.0,0.0001,2]
[405812000,1771332638689,-151.0,0.0001,2]
[405812002,1771332638699,-151.0,0.0001,2]
[405812004,1771332638709,-151.0,0.0001,2]
[405812006,1771332638718,-151.0,0.0001,2]
[405812008,1771332638727,-151.0,0.0001,2]
[405812010,1771332638737,-151.0,0.0001,2]
[405812012,1771332638746,-151.0,0.0001,2]
[405812014,1771332638756,-151.0,0.0001,2]
[405812016,1771332638765,-151.0,0.0001,2]
[405812018,1771332638775,-151.0,0.0001,2]
[405812020,1771332638785,-151.0,0.0001,2]
[405812021,1771332638794,-151.0,0.0001,2]
[405812024,1771332638804,-151.0,0.0001,2]
[405812026,1771332638816,-151.0,0.0001,2]
[405812028,1771332638826,-151.0,0.0001,2]
[405812029,1771332638835,-151.0,0.0001,2]
[405812031,1771332638845,-151.0,0.0001,2]
[405812033,1771332638855,-151.0,0.0001,2]
[405812035,1771332638865,-151.0,0.0001,2]
[405812037,1771332638875,-151.0,0.0001,2]
[405812039,1771332638885,-151.0,0.0001,2]
[405812041,1771332638895,-500.0,0.0001,2]
[405812043,1771332638908,-151.0,0.0001,2]
[405812046,1771332638917,-151.0,0.0001,2]
[405812048,1771332638927,-500.0,0.0001,2]
[405812049,1771332638936,-151.0,0.0001,2]
[405812051,1771332638945,-151.0,0.0001,2]
[405812053,1771332638955,-500.0,0.0001,2]
[405812056,1771332638964,-151.0,0.0001,2]
[405812058,1771332638974,-151.0,0.0001,2]
[405812060,1771332638986,-500.0,0.0001,2]
[405812062,1771332638996,-151.0,0.0001,2]
[405812063,1771332639006,-500.0,0.0001,2]
[405812065,1771332639016,-500.0,0.0001,2]
[405812068,1771332639026,-500.0,0.0001,2]
[405812069,1771332639036,-500.0,0.0001,2]
[405812072,1771332639046,-500.0,0.0001,2]
[405812073,1771332639056,-500.0,0.0001,2]
[405812075,1771332639066,-500.0,0.0001,2]
[405812078,1771332639075,-500.0,0.0001,2]
[405812080,1771332639086,-500.0,0.0001,2]
[405812081,1771332639096,-500.0,0.0001,2]
[405812084,1771332639106,-500.0,0.0001,2]
[405812086,1771332639115,-500.0,0.0001,2]
[405812088,1771332639125,-500.0,0.0001,2]
[405812089,1771332639135,-500.0,0.0001,2]
[405812091,1771332639144,-500.0,0.0001,2]
[405812093,1771332639154,-500.0,0.0001,2]
[405812096,1771332639164,-500.0,0.0001,2]
[405812097,1771332639174,-500.0,0.0001,2]
[405812099,1771332639184,-200.0,0.0001,2]
[405812102,1771332639193,-200.0,0.0001,2]
[405812104,1771332639203,-665.75189293,0.0001,2]
[405812105,1771332639212,-665.75189293,0.0001,2]
[405812107,1771332639222,-3591.31816986,0.00010334,2]
[405812109,1771332639232,-23747.49,0.00010365,2]
[405812112,1771332639241,-1852.42,0.00010365,2]
[405812113,1771332639251,-200.0,0.00010548,2]
[405812116,1771332639261,-200.0,0.00010548,2]
[405812118,1771332639271,-500.0,0.0001061,2]
[405812120,1771332639281,-6453.0,0.00010657,2]
[405812122,1771332639291,-2919.12915467,0.00010845,2]
[405812124,1771332639300,-1600.0,0.0001093,2]
[405812125,1771332639309,-500.0,0.00010959,2]
[405812128,1771332639319,-226.88409827,0.00010959,2]
[405812130,1771332639328,-166.66,0.00010959,2]
[405812132,1771332639338,-166.66,0.00011068,2]
[405812134,1771332639348,-200.0,0.00011096,2]
[405812136,1771332639356,-200.0,0.00011096,2]
[405812138,1771332639366,-5921.3128053,0.00011099,2]
[405812140,1771332639375,-5921.31280523,0.00011099,2]
[405812141,1771332639384,-5921.31280523,0.00011099,2]
[405812143,1771332639393,-5921.31280523,0.00011099,2]
[405812145,1771332639402,-5921.31280523,0.00011099,2]
[405812147,1771332639412,-1783.55639832,0.00011099,2]
[405812149,1771332639421,-1783.5563983,0.00011099,2]
[405812152,1771332639431,-1783.5563983,0.00011099,2]
[405812153,1771332639441,-1783.5563983,0.00011099,2]
[405812155,1771332639450,-1783.5563983,0.00011099,2]
[405812157,1771332639460,-166.66,0.00011178,2]
[405812159,1771332639469,-296.6,0.00011233,2]
[405812162,1771332639479,-7397.51,0.00011233,2]
[405812163,1771332639489,-151.0,0.00011262,4]
[405812165,1771332639498,-166.66,0.00011288,2]
[405812167,1771332639508,-1873.720256,0.00011322,2]
[405812168,1771332639517,-10637.371593,0.00011322,2]
[405812169,1771332639527,-166.66,0.00011397,2]
[405812170,1771332639536,-1783.5563983,0.00011462,2]
[405812171,1771332639546,-166.66,0.00011507,2]
[405812172,1771332639555,-200.0,0.00011644,2]
[405812173,1771332639565,-200.0,0.00011644,2]
[405812174,1771332639574,-2923.0,0.00011723,2]
[405812175,1771332639583,-5921.31280523,0.0001188,2]
[405812176,1771332639593,-1600.0,0.00012144,2]
[405812177,1771332639602,-200.0,0.00012192,2]
[405812178,1771332639612,-200.0,0.00012192,2]
[405812179,1771332639621,-6693.62423238,0.00012259,2]
[405812180,1771332639631,-170.3,0.00012285,2]
[405812181,1771332639640,-1783.5563983,0.00012418,2]
[405812182,1771332639649,-169.59292629,0.000125,2]
[405812183,1771332639659,-1000.0,0.00012593,2]
[405812184,1771332639668,-4194.14,0.00012714,2]
[405812185,1771332639678,-200.0,0.0001274,2]
[405812186,1771332639687,-200.0,0.0001274,2]
[405812187,1771332639697,-5921.31280523,0.0001292,2]
[405812188,1771332639707,-200.0,0.00013288,2]
[405812189,1771332639717,-201.77822118,0.00013288,2]
[405812190,1771332639727,-1600.0,0.00013358,2]
[405812191,1771332639736,-1783.5563983,0.00013374,2]
[405812192,1771332639746,-151.0,0.00013534,4]
[405812193,1771332639755,-500.0,0.00013698,2]
[405812194,1771332639765,-500.0,0.00013698,2]
[405812195,1771332639776,-500.0,0.00013698,2]
[405812196,1771332639786,-274.63915067,0.00013698,2]
[405812197,1771332639797,-500.0,0.00013698,2]
[405812198,1771332639807,-500.0,0.00013698,2]
[405812199,1771332639821,-500.0,0.00013698,2]
[405812200,1771332639831,-500.0,0.00013698,2]
[405812201,1771332639841,-500.0,0.00013698,2]
[405812202,1771332639851,-500.0,0.00013698,2]
[405812203,1771332639860,-500.0,0.00013698,2]
[405812204,1771332639871,-500.0,0.00013698,2]
[405812205,1771332639880,-500.0,0.00013698,2]
[405812206,1771332639891,-500.0,0.00013698,2]
[405812207,1771332639900,-391.46615766,0.00013698,2]
[405812208,1771332639910,-669.78,0.00013698,2]
[405812209,1771332639919,-669.78,0.00013698,2]
[405812210,1771332639929,-669.78,0.00013698,2]
[405812211,1771332639938,-669.78,0.00013698,2]
[405812212,1771332639947,-669.78,0.00013698,2]
[405812213,1771332639957,-669.78,0.00013698,2]
[405812214,1771332639967,-669.78,0.00013698,2]
[405812215,1771332639976,-669.78,0.00013698,2]
[405812216,1771332639985,-669.78,0.00013698,2]
[405812217,1771332639995,-669.78,0.00013698,2]
[405812218,1771332640004,-669.78,0.00013698,2]
[405812219,1771332640013,-669.78,0.00013698,2]
[405812220,1771332640022,-669.78,0.00013698,2]
[405812221,1771332640032,-669.78,0.00013698,2]
[405812222,1771332640041,-669.78,0.00013698,2]
[405812223,1771332640051,-500.0,0.00013698,2]
[405812224,1771332640060,-500.0,0.00013698,2]
[405812225,1771332640069,-298.04694078,0.00013698,2]
[405812226,1771332640078,-500.0,0.00013698,2]
[405812227,1771332640087,-500.0,0.00013698,2]
[405812228,1771332640097,-500.0,0.00013698,2]
[405812229,1771332640106,-500.0,0.00013698,2]
[405812230,1771332640115,-500.0,0.00013698,2]
[405812231,1771332640125,-500.0,0.00013698,2]
[405812232,1771332640134,-500.0,0.00013698,2]
[405812233,1771332640143,-500.0,0.00013698,2]
[405812234,1771332640153,-500.0,0.00013698,2]
[405812235,1771332640163,-500.0,0.00013698,2]
[405812236,1771332640172,-500.0,0.00013698,2]
[405812237,1771332640182,-500.0,0.00013698,2]
[405812238,1771332640192,-593.2774779,0.00013698,2]
[405812239,1771332640202,-508.20125622,0.00013698,2]
[405812240,1771332640211,-500.0,0.00013698,2]
[405812241,1771332640220,-197.6651859,0.00013698,2]
[405812242,1771332640230,-500.0,0.00013698,2]
[405812243,1771332640239,-500.0,0.00013698,2]
[405812244,1771332640248,-500.0,0.00013698,2]
[405812245,1771332640257,-522.2154278,0.00013698,2]
[405812246,1771332640266,-1147.19,0.00013698,2]
[405812247,1771332640275,-1147.19,0.00013698,2]
[405812248,1771332640285,-1147.19,0.00013698,2]
[405812249,1771332640295,-1147.19,0.00013698,2]
[405812250,1771332640304,-1147.19,0.00013698,2]
[405812251,1771332640313,-1147.19,0.00013698,2]
[405812252,1771332640323,-1147.19,0.00013698,2]
[405812253,1771332640332,-1147.19,0.00013698,2]
[405812254,1771332640342,-1147.19,0.00013698,2]
[405812255,1771332640351,-1147.19,0.00013698,2]
[405812256,1771332640360,-1147.19,0.00013698,2]
[405812257,1771332640370,-1147.19,0.00013698,2]
[405812258,1771332640380,-1147.19,0.00013698,2]
[405812259,1771332640390,-1147.19,0.00013698,2]
[405812260,1771332640399,-1147.19,0.00013698,2]
[405812261,1771332640408,-456.05800986,0.00013698,2]
[405812262,1771332640417,-500.0,0.00013698,2]
[405812263,1771332640427,-500.0,0.00013698,2]
[405812265,1771332640670,-500.0,0.00013698,2]
[405812266,1771332640682,-500.0,0.00013698,2]
[405812267,1771332640692,-500.0,0.00013698,2]
[405812268,1771332640701,-500.0,0.00013698,2]
[405812269,1771332640710,-500.0,0.00013698,2]
[405812270,1771332640720,-500.0,0.00013698,2]
[405812271,1771332640730,-500.0,0.00013698,2]
[405812272,1771332640739,-500.0,0.00013698,2]
[405812273,1771332640749,-500.0,0.00013698,2]
[405812274,1771332640759,-500.0,0.00013698,2]
[405812275,1771332640768,-500.0,0.00013698,2]
[405812276,1771332640778,-500.0,0.00013698,2]
[405812277,1771332640787,-500.0,0.00013698,2]
[405812278,1771332640797,-500.0,0.00013698,2]
[405812279,1771332640808,-500.0,0.00013698,2]
[405812280,1771332640820,-500.0,0.00013698,2]
[405812281,1771332640830,-503.77565291,0.00013698,2]
[405812282,1771332640839,-500.0,0.00013698,2]
[405812283,1771332640849,-500.0,0.00013698,2]
[405812284,1771332640859,-500.0,0.00013698,2]
[405812285,1771332640868,-551.5931465,0.00013698,2]
[405812286,1771332640878,-535.55684817,0.00013698,2]
[405812287,1771332640889,-500.0,0.00013698,2]
[405812288,1771332640898,-500.0,0.00013698,2]
[405812289,1771332640907,-500.0,0.00013698,2]
[405812290,1771332640916,-639.90682726,0.00013698,2]
[405812291,1771332640926,-500.0,0.00013698,2]
[405812292,1771332640935,-500.0,0.00013698,2]
[405812293,1771332640944,-500.0,0.00013698,2]
[405812294,1771332640954,-500.0,0.00013698,2]
[405812295,1771332640963,-500.0,0.00013698,2]
[405812296,1771332640972,-500.0,0.00013698,2]
[405812297,1771332640981,-500.0,0.00013698,2]
[405812298,1771332640990,-500.0,0.00013698,2]
[405812299,1771332640999,-576.0663384,0.00013698,2]
[405812300,1771332641008,-336.38,0.00013698,2]
[405812301,1771332641018,-349.69131006,0.00013698,2]
[405812302,1771332641027,-500.0,0.00013698,2]
[405812303,1771332641037,-500.0,0.00013698,2]
[405812304,1771332641046,-500.0,0.00013698,2]
[405812305,1771332641055,-500.0,0.00013698,2]
[405812306,1771332641064,-500.0,0.00013698,2]
[405812307,1771332641073,-500.0,0.00013698,2]
[405812308,1771332641082,-500.0,0.00013698,2]
[405812309,1771332641091,-500.0,0.00013698,2]
[405812310,1771332641100,-500.0,0.00013698,2]
[405812311,1771332641109,-500.0,0.00013698,2]
[405812312,1771332641118,-500.0,0.00013698,2]
[405812313,1771332641128,-500.0,0.00013698,2]
[405812314,1771332641137,-500.0,0.00013698,2]
[405812315,1771332641147,-500.0,0.00013698,2]
[405812316,1771332641156,-500.0,0.00013698,2]
[405812317,1771332641165,-500.0,0.00013698,2]
[405812318,1771332641174,-529.40507312,0.00013698,2]
[405812319,1771332641183,-500.0,0.00013698,2]
[405812320,1771332641193,-500.0,0.00013698,2]
[405812321,1771332641202,-500.0,0.00013698,2]
[405812322,1771332641212,-500.0,0.00013698,2]
[405812323,1771332641221,-304.62895111,0.00013698,2]
[405812324,1771332641230,-500.0,0.00013698,2]
[405812325,1771332641239,-500.0,0.00013698,2]
[405812326,1771332641249,-500.0,0.00013698,2]
[405812327,1771332641258,-500.0,0.00013698,2]
[405812328,1771332641268,-500.0,0.00013698,2]
[405812329,1771332641277,-500.0,0.00013698,2]
[405812330,1771332641286,-500.0,0.00013698,2]
[405812331,1771332641295,-500.0,0.00013698,2]
[405812332,1771332641304,-465.55674509,0.00013698,2]
[405812333,1771332641314,-724.54,0.00013698,2]
[405812334,1771332641323,-724.54,0.00013698,2]
[405812335,1771332641332,-724.54,0.00013698,2]
[405812336,1771332641341,-724.54,0.00013698,2]
[405812337,1771332641351,-724.54,0.00013698,2]
[405812338,1771332641359,-724.54,0.00013698,2]
[405812339,1771332641369,-724.54,0.00013698,2]
[405812340,1771332641378,-724.54,0.00013698,2]
[405812341,1771332641387,-724.54,0.00013698,2]
[405812342,1771332641396,-724.54,0.00013698,2]
[405812343,1771332641405,-724.54,0.00013698,2]
[405812344,1771332641415,-724.54,0.00013698,2]
[405812345,1771332641424,-724.54,0.00013698,2]
[405812346,1771332641434,-724.54,0.00013698,2]
[405812347,1771332641443,-170.3,0.0001382,2]
[405812348,1771332641452,-201.41552809,0.00013836,2]
[405812349,1771332641461,-5921.31280523,0.0001396,2]
[405812350,1771332641471,-336.38,0.00013972,2]
[405812351,1771332641480,-551.38570251,0.00014,2]
[405812352,1771332641489,-1000.0,0.00014167,2]
[405812353,1771332641498,-336.38,0.00014246,2]
[405812354,1771332641507,-1783.5563983,0.00014331,2]
[405812355,1771332641516,-336.38,0.0001452,2]
[405812356,1771332641526,-1600.0,0.00014573,2]
[405812357,1771332641535,-151.0,0.00014634,2]
[405812358,1771332641544,-151.0,0.00014634,2]
[405812359,1771332641554,-336.41490725,0.00014794,2]
[405812360,1771332641563,-250.0,0.00015,2]
[405812361,1771332641573,-5921.31280523,0.00015,2]
[405812362,1771332641582,-4372.013932,0.00015096,7]
[405812363,1771332641591,-24820.533718,0.00015096,7]
[405812364,1771332641601,-173.57638878,0.0001521,2]
[405812365,1771332641610,-160.0,0.00015217,2]
[405812366,1771332641620,-1783.5563983,0.00015287,2]
[405812367,1771332641629,-170.3,0.00015356,2]
[405812368,1771332641638,-1215416.7348,0.00015374,2]
[405812369,1771332641647,-306.51422453,0.00015573,2]
[405812370,1771332641656,-1000.0,0.00015577,7]
[405812371,1771332641665,-484.11558281,0.00015649,2]
[405812372,1771332641675,-1000.0,0.00015741,2]
[405812373,1771332641684,-151.0,0.00015806,4]
[405812374,1771332641694,-234.9,0.00015905,2]
[405812375,1771332641703,-776.66,0.00015931,2]
[405812376,1771332641713,-5000.0,0.0001596,2]
[405812377,1771332641723,-173.57638878,0.00016,3]
[405812378,1771332641732,-152.85835457,0.00016,2]
[405812379,1771332641741,-5921.31280523,0.0001604,2]
[405812380,1771332641751,-484.11558281,0.0001604,2]
[405812381,1771332641760,-7910.59,0.00016116,2]
[405812382,1771332641770,-500.0,0.0001614,2]
[405812383,1771332641779,-500.0,0.0001614,2]
[405812384,1771332641788,-500.0,0.0001614,2]
[405812385,1771332641798,-500.0,0.0001614,2]
[405812386,1771332641810,-578.20924308,0.0001614,2]
[405812387,1771332641819,-174.61919141,0.0001614,2]
[405812388,1771332641829,-500.0,0.0001614,2]
[405812389,1771332641838,-500.0,0.0001614,2]
[405812390,1771332641848,-500.0,0.0001614,2]
[405812391,1771332641858,-500.0,0.0001614,2]
[405812392,1771332641868,-500.0,0.0001614,2]
[405812393,1771332641879,-151.0,0.0001614,2]
[405812394,1771332641888,-1428.38747117,0.0001614,2]
[405812395,1771332641898,-500.0,0.0001614,2]
[405812396,1771332641907,-151.0,0.0001614,2]
[405812397,1771332641917,-3000.0,0.0001614,2]